bitfinex-derivatives/quotes_BTCF0:USTF0_20241015
["timestamp","ask_amount","ask_price","bid_price","bid_amount"]
[1728977616647,0.616807,65813.0,65812.0,0.076407]
[1728977616852,0.616807,65813.0,65812.0,0.0004]
[1728977617154,0.076011,65809.0,65806.0,0.0106]
[1728977617350,0.076011,65809.0,65793.0,0.0332]
[1728977617351,0.076019,65802.0,65801.0,0.0039]
[1728977617658,0.256019,65802.0,65801.0,0.0271973]
[1728977617857,0.256019,65802.0,65801.0,0.0004]
[1728977619652,0.256019,65802.0,65801.0,0.0014]
[1728977620047,0.256019,65802.0,65801.0,0.07742]
[1728977625161,0.616819,65802.0,65801.0,0.07742]
[1728977625748,0.436819,65802.0,65801.0,0.07742]
[1728977625963,0.556819,65802.0,65801.0,0.07742]
[1728977627165,0.4808,65802.0,65801.0,0.07742]
[1728977627757,0.3608,65802.0,65801.0,0.07742]
[1728977628061,0.12,65804.0,65803.0,0.076018]
[1728977628255,0.12,65804.0,65803.0,0.076418]
[1728977629960,0.256016,65805.0,65804.0,0.076017]
[1728977630167,0.256016,65805.0,65804.0,0.076417]
[1728977636971,0.3608,65807.0,65806.0,0.076015]
[1728977637270,0.436813,65807.0,65806.0,0.076415]
[1728977641178,0.436813,65807.0,65806.0,0.10381929]
[1728977643069,0.3608,65807.0,65806.0,0.10381929]
[1728977647371,0.0004,65809.0,65806.0,0.10381929]
[1728977647670,0.0071,65812.0,65811.0,0.076009]
[1728977647871,0.0004,65813.0,65812.0,0.076008]
[1728977648080,0.0004,65813.0,65812.0,0.319308]
[1728977648672,0.0004,65813.0,65812.0,0.319708]
[1728977649271,0.0004,65813.0,65812.0,0.320708]
[1728977649884,0.0004,65813.0,65812.0,0.260708]
[1728977650586,0.0004,65813.0,65812.0,0.261708]
[1728977650983,0.0004,65813.0,65812.0,0.622508]
[1728977651283,0.0004,65813.0,65812.0,1.068348]
[1728977651474,0.0071,65818.0,65812.0,1.668348]
[1728977651680,0.1143,65824.0,65820.0,0.075998]
[1728977651681,0.0071,65821.0,65820.0,0.075998]
[1728977651881,0.1108,65824.0,65823.0,0.075995]
[1728977652079,0.1108,65824.0,65823.0,0.076395]
[1728977653078,0.1108,65824.0,65823.0,0.077395]
[1728977654385,0.1208,65824.0,65823.0,0.077395]
[1728977654982,0.1208,65824.0,65823.0,0.078395]
[1728977655183,0.1108,65824.0,65823.0,0.078395]
[1728977657391,0.1208,65824.0,65823.0,0.078395]
[1728977657882,0.1208,65824.0,65823.0,0.10535658]
[1728977669396,0.229294,65824.0,65823.0,0.10535658]
[1728977673398,0.109294,65824.0,65823.0,0.10535658]
[1728977673605,0.229294,65824.0,65823.0,0.10535658]
[1728977676210,0.109294,65824.0,65823.0,0.10535658]
[1728977676405,0.0333,65824.0,65823.0,0.10535658]
[1728977676605,0.1533,65824.0,65823.0,0.10535658]
[1728977679701,0.229294,65824.0,65823.0,0.10535658]
[1728977681309,0.109294,65824.0,65823.0,0.10535658]
[1728977685215,0.109294,65824.0,65823.0,0.0024]
[1728977685606,0.229294,65824.0,65823.0,0.0024]
[1728977699923,0.590094,65824.0,65823.0,0.0024]
[1728977700312,0.590094,65824.0,65823.0,0.078395]
[1728977703244,0.3616,65824.0,65823.0,0.078395]
[1728977703524,0.4816,65824.0,65823.0,0.078395]
[1728977705918,0.557594,65824.0,65823.0,0.078395]
[1728977707627,0.557594,65824.0,65823.0,0.0024]
[1728977708219,0.557594,65824.0,65823.0,0.0014]
[1728977708419,0.557594,65824.0,65823.0,0.0024]
[1728977708721,0.557594,65824.0,65823.0,0.0014]
[1728977708921,0.557594,65824.0,65823.0,0.0024]
[1728977710527,0.437594,65824.0,65823.0,0.078395]
[1728977710722,0.557594,65824.0,65823.0,0.078395]
[1728977712228,0.557594,65824.0,65823.0,0.0024]
[1728977712725,0.677594,65824.0,65823.0,0.0024]
[1728977713125,1.133354,65824.0,65823.0,0.0024]
[1728977714130,0.075997,65821.0,65820.0,0.0004]
[1728977714324,0.676797,65821.0,65820.0,0.0004]
[1728977714632,0.316001,65818.0,65817.0,0.0004]
[1728977715827,0.076008,65812.0,65805.0,0.1076688]
[1728977716020,0.556811,65809.0,65808.0,0.0004]
[1728977716221,0.676811,65809.0,65808.0,0.0004]
[1728977716621,0.556811,65809.0,65808.0,0.0004]
[1728977717831,0.557811,65809.0,65808.0,0.0004]
[1728977718432,0.558811,65809.0,65808.0,0.0004]
[1728977721235,0.558811,65809.0,65808.0,0.076412]
[1728977722735,0.558811,65809.0,65808.0,0.0004]
[1728977722935,0.678811,65809.0,65808.0,0.0004]
[1728977723229,0.558811,65809.0,65808.0,0.0004]
[1728977723440,0.678811,65809.0,65808.0,0.0004]
[1728977723622,1.734691,65809.0,65808.0,0.0004]
[1728977723827,0.076013,65807.0,65806.0,0.0004]
[1728977724331,1.131893,65807.0,65806.0,0.0004]
[1728977725633,0.531893,65807.0,65806.0,0.0004]
[1728977727541,0.534893,65807.0,65806.0,0.0024]
[1728977728730,0.531893,65807.0,65806.0,0.0014]
[1728977728939,0.537893,65807.0,65806.0,0.0024]
[1728977730346,0.531893,65807.0,65806.0,0.0014]
[1728977730542,0.534893,65807.0,65806.0,0.0024]
[1728977730840,0.079013,65807.0,65806.0,0.0024]
[1728977731137,0.199013,65807.0,65806.0,0.0024]
[1728977732735,0.319013,65807.0,65806.0,0.0024]
[1728977733742,0.316013,65807.0,65806.0,0.0014]
[1728977733938,0.319013,65807.0,65806.0,0.0024]
[1728977736440,0.076027,65795.0,65793.0,0.108729]
[1728977736646,0.076028,65794.0,65793.0,0.108729]
[1728977737847,0.076028,65794.0,65793.0,0.06001706]
[1728977738051,0.077028,65794.0,65793.0,0.06001706]
[1728977738250,0.197028,65794.0,65793.0,0.06001706]
[1728977738448,0.121,65794.0,65782.0,0.007]
[1728977738648,0.121,65794.0,65778.0,0.36866]
[1728977738649,0.556837,65787.0,65785.0,0.076039]
[1728977738849,0.556837,65787.0,65783.0,0.0308]
[1728977738850,0.07604,65784.0,65783.0,0.0308]
[1728977739045,0.31604,65784.0,65783.0,0.0308]
[1728977739351,0.076044,65781.0,65780.0,0.076045]
[1728977739541,0.556844,65781.0,65780.0,0.076045]
[1728977740251,0.676844,65781.0,65780.0,0.076045]
[1728977740455,0.556844,65781.0,65780.0,0.076045]
[1728977741153,0.676844,65781.0,65780.0,0.076045]
[1728977741457,0.559844,65781.0,65780.0,0.076045]
[1728977741951,0.682844,65781.0,65780.0,0.001]
[1728977743250,0.561844,65781.0,65780.0,0.001]
[1728977743551,0.561844,65781.0,65779.0,0.076046]
[1728977743552,0.4818,65781.0,65779.0,0.076046]
[1728977743754,0.076045,65780.0,65779.0,0.076046]
[1728977744957,0.081045,65780.0,65779.0,0.077046]
[1728977749356,0.081045,65780.0,65779.0,0.001]
[1728977753049,0.081045,65780.0,65779.0,0.077046]
[1728977754468,0.005,65780.0,65779.0,0.077046]
[1728977756257,0.004,65780.0,65779.0,0.078046]
[1728977756762,0.3714,65787.0,65786.0,0.076038]
[1728977756952,0.3608,65787.0,65786.0,0.196438]
[1728977757860,0.3608,65787.0,65786.0,0.197438]
[1728977757861,0.3648,65787.0,65786.0,0.197438]
[1728977758164,0.3658,65787.0,65786.0,0.197438]
[1728977758351,0.3618,65787.0,65786.0,0.196438]
[1728977759064,0.3618,65787.0,65786.0,0.076438]
[1728977759470,0.3608,65787.0,65786.0,0.077438]
[1728977760255,0.3608,65787.0,65786.0,0.076438]
[1728977761774,0.3608,65787.0,65786.0,0.10342427]
[1728977762165,0.3608,65787.0,65786.0,0.22342427]
[1728977763071,0.3608,65787.0,65786.0,0.22442427]
[1728977763273,0.3608,65787.0,65786.0,0.22642427]
[1728977763963,0.3608,65787.0,65786.0,0.22442427]
[1728977764164,0.3608,65787.0,65786.0,0.22342427]
[1728977765960,0.3608,65787.0,65786.0,0.22442427]
[1728977766679,0.3608,65787.0,65786.0,0.10342427]
[1728977767175,0.4808,65787.0,65786.0,0.10442427]
[1728977767564,0.4808,65787.0,65786.0,0.10342427]
[1728977768476,0.556837,65787.0,65786.0,0.02738627]
[1728977768669,0.556837,65787.0,65786.0,0.0004]
[1728977768871,0.676837,65787.0,65786.0,0.0004]
[1728977769081,0.676837,65787.0,65778.0,0.03106369]
[1728977769082,0.076046,65779.0,65778.0,0.03106369]
[1728977769266,0.076046,65779.0,65774.0,0.07605]
[1728977769267,0.676846,65779.0,65774.0,0.07605]
[1728977769585,0.076054,65772.0,65771.0,0.076054]
[1728977769776,0.556854,65772.0,65771.0,0.076054]
[1728977770762,0.556854,65772.0,65771.0,0.090054]
[1728977771076,0.556854,65772.0,65771.0,0.014]
[1728977771274,0.4808,65772.0,65763.0,0.0035]
[1728977771470,0.12,65764.0,65760.0,0.0342]
[1728977771679,0.12,65764.0,65763.0,0.076064]
[1728977773475,0.12,65764.0,65763.0,0.096064]
[1728977774067,0.12,65764.0,65763.0,0.086064]
[1728977774262,0.12,65764.0,65763.0,0.096064]
[1728977775979,0.4808,65766.0,65763.0,0.216064]
[1728977776177,0.3608,65766.0,65765.0,0.196462]
[1728977776678,0.3608,65766.0,65765.0,0.076462]
[1728977777379,0.3608,65766.0,65765.0,0.204462]
[1728977779372,0.3608,65766.0,65765.0,0.212462]
[1728977779882,0.3608,65766.0,65765.0,0.272462]
[1728977780867,0.3608,65772.0,65765.0,0.5572]
[1728977781082,0.3608,65772.0,65771.0,0.076455]
[1728977783078,0.3608,65772.0,65771.0,0.080455]
[1728977784481,0.0106,65776.0,65775.0,0.07605]
[1728977784675,0.256049,65777.0,65776.0,0.076049]
[1728977784876,0.256049,65777.0,65776.0,0.076449]
[1728977786380,0.257049,65777.0,65776.0,0.076449]
[1728977788775,0.257049,65777.0,65776.0,0.0004]
[1728977788984,0.287949,65777.0,65776.0,0.076449]
[1728977792487,0.257049,65777.0,65776.0,0.076449]
[1728977793584,0.077049,65777.0,65776.0,0.076449]
[1728977795188,0.257049,65777.0,65776.0,0.076449]
[1728977796881,0.001,65777.0,65776.0,0.076449]
[1728977797989,0.0106,65784.0,65783.0,0.076041]
[1728977798183,0.07831883,65786.0,65785.0,0.076039]
[1728977798481,0.07831883,65786.0,65785.0,0.076439]
[1728977799879,0.07831883,65786.0,65785.0,0.077439]
[1728977800187,0.25831883,65786.0,65785.0,0.077439]
[1728977800780,0.25831883,65786.0,65785.0,0.078439]
[1728977800980,0.18228083,65786.0,65785.0,0.078439]
[1728977801176,0.00228083,65786.0,65785.0,0.078439]
[1728977801877,0.00228083,65786.0,65785.0,0.198439]
[1728977802388,0.00228083,65786.0,65785.0,0.197439]
[1728977802791,0.00228083,65786.0,65785.0,0.10436282]
[1728977803691,0.00228083,65786.0,65785.0,0.22336282]
[1728977803890,0.00228083,65786.0,65785.0,0.10336282]
[1728977806789,0.25831883,65786.0,65785.0,0.10336282]
[1728977807986,0.00228083,65786.0,65785.0,0.10336282]
[1728977808184,0.18228083,65786.0,65785.0,0.10336282]
[1728977809599,0.25831883,65786.0,65785.0,0.10336282]
[1728977811593,0.256038,65786.0,65785.0,0.10336282]
[1728977817789,0.18,65786.0,65785.0,0.10336282]
[1728977817991,0.0004,65787.0,65786.0,0.076038]
[1728977818291,0.0004,65787.0,65786.0,0.076438]
[1728977818495,0.076437,65787.0,65786.0,0.076438]
[1728977819296,0.076437,65787.0,65786.0,0.077438]
[1728977820500,0.0004,65787.0,65786.0,0.077438]
[1728977822700,0.076437,65787.0,65786.0,0.077438]
[1728977824600,0.0004,65787.0,65786.0,0.077438]
[1728977825306,0.076437,65787.0,65786.0,0.077438]
[1728977825899,0.196437,65787.0,65786.0,0.077438]
[1728977831199,0.1204,65787.0,65786.0,0.077438]
[1728977837699,0.0004,65787.0,65786.0,0.077438]
[1728977839118,0.0004,65787.0,65786.0,0.12247521]
[1728977840511,0.0004,65787.0,65786.0,0.24247521]
[1728977840720,0.0106,65794.0,65793.0,0.07603]
[1728977841009,0.3608,65808.0,65797.0,0.076025]
[1728977841010,0.0106,65801.0,65797.0,0.076025]
[1728977841214,0.07602,65802.0,65797.0,0.196425]
[1728977841810,0.131,65805.0,65797.0,0.196425]
[1728977842216,0.076417,65804.0,65797.0,0.196425]
[1728977843417,0.076018,65803.0,65797.0,0.198425]
[1728977843721,0.076417,65804.0,65797.0,0.198425]
[1728977845109,0.076018,65803.0,65797.0,0.198425]
[1728977845318,0.12,65802.0,65797.0,0.198425]
[1728977845519,0.19602,65802.0,65797.0,0.198425]
[1728977845719,0.12,65802.0,65797.0,0.198425]
[1728977845910,0.31898423,65798.0,65797.0,0.654385]
[1728977846113,0.0004,65809.0,65806.0,0.076015]
[1728977846308,0.0035,65819.0,65806.0,1.05708]
[1728977846515,0.0035,65819.0,65811.0,0.076409]
[1728977846714,0.437197,65821.0,65811.0,0.076409]
[1728977847016,0.12,65817.0,65811.0,0.076409]
[1728977848408,0.12,65814.0,65811.0,0.076409]
[1728977848614,0.076408,65812.0,65811.0,0.076409]
[1728977848827,0.076408,65812.0,65811.0,0.1032594]
[1728977849312,0.076408,65812.0,65811.0,0.1042594]
[1728977849519,0.076408,65812.0,65811.0,0.1052594]
[1728977850317,0.0004,65812.0,65811.0,0.1052594]
[1728977850518,0.0004,65812.0,65811.0,0.2252594]
[1728977853918,0.0004,65812.0,65811.0,0.2852594]
[1728977857419,0.0004,65812.0,65811.0,0.6460594]
[1728977861215,0.0004,65812.0,65811.0,0.6450594]
[1728977861531,0.0004,65812.0,65811.0,0.6460594]
[1728977862330,0.0004,65812.0,65811.0,0.6450594]
[1728977862625,0.0004,65812.0,65811.0,0.6460594]
[1728977863217,0.0004,65818.0,65811.0,0.5690504]
[1728977863431,0.0004,65818.0,65812.0,0.076408]
[1728977865030,0.0004,65818.0,65812.0,0.079408]
[1728977865834,0.0004,65818.0,65812.0,0.081408]
[1728977868130,0.0004,65818.0,65817.0,0.076002]
[1728977868325,0.0004,65818.0,65817.0,0.616802]
[1728977868522,0.0004,65818.0,65817.0,0.617202]
[1728977869323,0.0004,65821.0,65820.0,0.075998]
[1728977869526,0.0004,65821.0,65820.0,0.076398]
[1728977873526,0.0004,65821.0,65820.0,0.12136483]
[1728977873723,0.0004,65821.0,65820.0,0.076398]
[1728977875840,0.0004,65821.0,65820.0,0.186398]
[1728977877241,0.0004,65821.0,65820.0,0.23155522]
[1728977877436,0.0004,65821.0,65820.0,0.2583658]
[1728977878940,0.0004,65821.0,65820.0,0.21320858]
[1728977879528,0.0012,65824.0,65823.0,0.075995]
[1728977879846,0.0004,65828.0,65827.0,0.07599]
[1728977880040,0.0004,65828.0,65827.0,0.65719]
[1728977880243,0.0302,65831.0,65827.0,0.65719]
[1728977880539,0.0302,65831.0,65830.0,0.186387]
[1728977881633,0.0302,65831.0,65830.0,0.187387]
[1728977882444,0.0302,65831.0,65830.0,0.21464931]
[1728977883242,0.1402,65831.0,65830.0,0.10564931]
[1728977883447,0.216186,65831.0,65830.0,0.10564931]
[1728977888149,0.0302,65831.0,65830.0,0.10564931]
[1728977890650,0.0302,65831.0,65830.0,0.21564931]
[1728977892246,0.0302,65831.0,65830.0,0.57644931]
[1728977896252,0.0313,65834.0,65833.0,0.075983]
[1728977896657,0.0313,65834.0,65833.0,0.076383]
[1728977897950,0.0313,65834.0,65833.0,0.077383]
[1728977898146,0.11,65837.0,65833.0,0.0014]
[1728977898351,0.11,65837.0,65836.0,0.07638]
[1728977898547,0.1422,65838.0,65837.0,0.075979]
[1728977898751,0.1422,65838.0,65837.0,0.076379]
[1728977900142,0.0322,65838.0,65837.0,0.077379]
[1728977900358,0.0315,65839.0,65838.0,0.075978]
[1728977900654,0.0315,65839.0,65838.0,0.076378]
[1728977901252,0.0315,65839.0,65838.0,0.186378]
[1728977901958,0.0316,65844.0,65843.0,0.075972]
[1728977902156,0.0316,65844.0,65843.0,0.437172]
[1728977902350,0.075967,65848.0,65847.0,0.075967]
[1728977902652,0.075967,65848.0,65847.0,0.076367]
[1728977902653,0.185967,65848.0,65847.0,0.076367]
[1728977903659,0.185967,65848.0,65847.0,0.077367]
[1728977904257,0.185967,65848.0,65847.0,0.076367]
[1728977904459,0.185967,65848.0,65847.0,0.077367]
[1728977905557,0.185967,65848.0,65847.0,0.078367]
[1728977906453,0.075967,65848.0,65847.0,0.078367]
[1728977907059,0.0641,65851.0,65847.0,0.078367]
[1728977907060,0.0315,65851.0,65847.0,0.0024]
[1728977907363,1.576882,65852.0,65851.0,0.075963]
[1728977907561,0.075962,65852.0,65851.0,0.076363]
[1728977909064,0.075962,65852.0,65851.0,0.077363]
[1728977910955,0.075962,65852.0,65851.0,0.078363]
[1728977912650,0.185962,65852.0,65851.0,0.078363]
[1728977915263,0.185962,65852.0,65851.0,0.0024]
[1728977915667,0.185962,65852.0,65847.0,0.0004]
[1728977915668,0.075963,65851.0,65847.0,0.0004]
[1728977915966,0.075971,65844.0,65841.0,0.0141]
[1728977916163,0.075971,65844.0,65837.0,0.02775309]
[1728977916164,2.756771,65844.0,65837.0,0.02775309]
[1728977916464,2.851611,65844.0,65837.0,0.02775309]
[1728977916664,3.212411,65844.0,65837.0,0.02775309]
[1728977917468,3.212411,65844.0,65837.0,0.0004]
[1728977917666,2.031611,65844.0,65842.0,0.075973]
[1728977917864,1.685971,65844.0,65843.0,0.076372]
[1728977918166,1.685971,65844.0,65843.0,0.077372]
[1728977918167,1.686971,65844.0,65843.0,0.077372]
[1728977919265,1.688971,65844.0,65843.0,0.078372]
[1728977919762,1.578971,65844.0,65843.0,0.078372]
[1728977921965,1.578971,65844.0,65843.0,0.10636062]
[1728977924977,0.003,65844.0,65843.0,0.28636062]
[1728977925175,0.078971,65844.0,65843.0,0.28636062]
[1728977927273,0.078971,65844.0,65843.0,0.10636062]
[1728977939783,0.188971,65844.0,65843.0,0.10636062]
[1728977941483,0.188971,65844.0,65843.0,0.03038862]
[1728977942281,0.188971,65844.0,65843.0,0.0024]
[1728977947691,0.188971,65844.0,65843.0,0.078372]
[1728977947989,0.188971,65844.0,65843.0,0.0024]
[1728977949185,0.188971,65844.0,65843.0,0.078372]
[1728977953982,0.188971,65844.0,65843.0,0.0024]
[1728977954487,0.078971,65844.0,65843.0,0.078372]
[1728977954689,0.003,65844.0,65843.0,0.078372]
[1728977955388,0.003,65844.0,65843.0,0.188372]
[1728977961695,0.003,65844.0,65843.0,0.23352338]
[1728977961896,0.0004,65848.0,65843.0,0.788372]
[1728977962196,0.0004,65848.0,65847.0,0.547167]
[1728977962394,0.0004,65851.0,65850.0,0.075964]
[1728977962587,0.0004,65851.0,65850.0,0.186364]
[1728977963294,0.0004,65856.0,65855.0,0.075958]
[1728977963489,0.0004,65856.0,65855.0,0.186358]
[1728977964394,0.0004,65856.0,65855.0,0.187358]
[1728977964702,0.076357,65856.0,65855.0,0.078358]
[1728977966501,0.076357,65856.0,65855.0,0.10550821]
[1728977970694,0.186357,65856.0,65855.0,0.10550821]
[1728977971500,0.296357,65856.0,65855.0,0.02955021]
[1728977972496,0.657157,65856.0,65855.0,0.02955021]
[1728977973694,0.296357,65856.0,65855.0,0.02955021]
[1728977974099,0.296357,65856.0,65855.0,0.0024]
[1728977978201,0.296357,65856.0,65855.0,0.0014]
[1728977978501,0.296357,65856.0,65855.0,0.0024]
[1728977979907,0.186357,65856.0,65855.0,0.0024]
[1728977980106,0.296357,65856.0,65855.0,0.0014]
[1728977980504,0.296357,65856.0,65855.0,0.0024]
[1728977981312,1.461917,65856.0,65850.0,0.0004]
[1728977981609,0.546763,65851.0,65850.0,0.0004]
[1728977981810,2.156763,65851.0,65850.0,0.0004]
[1728977982013,2.046763,65851.0,65850.0,0.0004]
[1728977982506,0.546763,65851.0,65850.0,0.0004]
[1728977982807,2.156763,65851.0,65850.0,0.0014]
[1728977983004,1.936763,65851.0,65850.0,0.0014]
[1728977983408,2.046763,65851.0,65850.0,0.0014]
[1728977983596,2.046763,65851.0,65850.0,0.0024]
[1728977984306,2.047763,65851.0,65850.0,0.0024]
[1728977984499,1.937763,65851.0,65850.0,0.0024]
[1728977984706,2.047763,65851.0,65850.0,0.0024]
[1728977985006,2.048763,65851.0,65850.0,0.0024]
[1728977985316,1.938763,65851.0,65850.0,0.078364]
[1728977985605,2.049763,65851.0,65850.0,0.078364]
[1728977986399,0.078963,65851.0,65850.0,0.078364]
[1728977986604,0.188963,65851.0,65850.0,0.078364]
[1728977987114,0.187963,65851.0,65850.0,0.078364]
[1728977987603,0.186963,65851.0,65850.0,0.077364]
[1728977987804,0.187963,65851.0,65850.0,0.078364]
[1728977994011,0.187963,65851.0,65850.0,0.0024]
[1728977997111,0.548763,65851.0,65850.0,0.0024]
[1728978000016,0.548763,65851.0,65850.0,0.078364]
[1728978006611,0.3628,65851.0,65850.0,0.078364]
[1728978006814,0.002,65851.0,65850.0,0.078364]
[1728978007819,0.002,65851.0,65850.0,0.108864]
[1728978014625,0.0008,65856.0,65850.0,1.164424]
[1728978014827,0.0008,65856.0,65855.0,0.075958]
[1728978015018,0.0008,65856.0,65855.0,0.076358]
[1728978015225,0.1108,65856.0,65855.0,0.076358]
[1728978015723,0.0008,65856.0,65855.0,0.076358]
[1728978015926,0.075945,65866.0,65864.0,0.075948]
[1728978016122,0.261892,65866.0,65865.0,0.076347]
[1728978016326,0.185945,65866.0,65865.0,0.076347]
[1728978016826,0.0004,65869.0,65865.0,0.076347]
[1728978017029,0.0004,65875.0,65874.0,0.075936]
[1728978017328,0.186335,65875.0,65874.0,0.076336]
[1728978019531,0.076335,65875.0,65874.0,0.078336]
[1728978019735,0.186335,65875.0,65874.0,0.078336]
[1728978020030,0.186335,65875.0,65874.0,0.10522342]
[1728978025235,0.0004,65875.0,65874.0,0.10522342]
[1728978025934,0.076335,65875.0,65874.0,0.10522342]
[1728978027720,0.0004,65875.0,65874.0,0.10522342]
[1728978028336,0.0004,65875.0,65874.0,0.21522342]
[1728978030345,0.076335,65875.0,65874.0,0.21522342]
[1728978031035,0.0004,65875.0,65874.0,0.21522342]
[1728978032827,0.076335,65875.0,65874.0,0.21522342]
[1728978033544,0.076335,65875.0,65874.0,0.10522342]
[1728978038634,0.075925,65884.0,65874.0,0.10522342]
[1728978038635,0.0004,65882.0,65881.0,0.075928]
[1728978038850,0.075907,65900.0,65881.0,0.892088]
[1728978038851,0.3643,65895.0,65881.0,0.892088]
[1728978039032,0.3643,65895.0,65894.0,0.075913]
[1728978039238,0.3643,65895.0,65894.0,0.076313]
[1728978039239,0.4708,65895.0,65894.0,0.076313]
[1728978039768,0.656712,65895.0,65894.0,0.0004]
[1728978040249,0.656712,65895.0,65881.0,0.3612]
[1728978040250,0.075921,65887.0,65885.0,0.11320542]
[1728978040443,0.185921,65887.0,65886.0,0.075922]
[1728978041341,0.11,65887.0,65881.0,0.3622]
[1728978041537,0.3608,65888.0,65881.0,0.3622]
[1728978041538,0.185926,65883.0,65881.0,0.3612]
[1728978041742,0.295926,65883.0,65882.0,0.027356]
[1728978041942,0.075927,65882.0,65874.0,0.0039]
[1728978042142,0.255935,65875.0,65874.0,0.0004]
[1728978042737,0.255935,65875.0,65874.0,0.076336]
[1728978044446,0.255935,65875.0,65874.0,0.0004]
[1728978045033,0.711335,65875.0,65874.0,0.0004]
[1728978045241,0.711335,65875.0,65868.0,0.02740863]
[1728978045242,1.311335,65875.0,65868.0,0.02740863]
[1728978045441,0.616742,65869.0,65868.0,0.02740863]
[1728978045641,0.616742,65869.0,65868.0,0.0004]
[1728978046544,0.616742,65869.0,65868.0,0.0034]
[1728978047250,0.616742,65869.0,65868.0,0.0074]
[1728978047948,0.616742,65869.0,65868.0,0.0044]
[1728978048141,0.616742,65869.0,65868.0,0.0074]
[1728978048338,0.616742,65869.0,65868.0,0.0034]
[1728978048644,0.616742,65869.0,65868.0,0.0074]
[1728978052446,0.0004,65875.0,65868.0,0.1874]
[1728978052754,0.075939,65872.0,65871.0,0.075938]
[1728978053257,0.255939,65872.0,65871.0,0.075938]
[1728978055058,0.255939,65872.0,65871.0,0.076938]
[1728978055658,0.3612,65875.0,65874.0,0.075936]
[1728978055868,0.437135,65875.0,65874.0,0.076336]
[1728978056158,0.3612,65875.0,65874.0,0.076336]
[1728978056957,0.437135,65875.0,65874.0,0.076336]
[1728978057762,0.438135,65875.0,65874.0,0.076336]
[1728978060152,0.438135,65875.0,65874.0,0.0004]
[1728978061163,0.075942,65869.0,65868.0,0.0004]
[1728978061355,0.616742,65869.0,65868.0,0.0004]
[1728978061763,2.116742,65869.0,65868.0,0.0004]
[1728978062061,0.616742,65869.0,65868.0,0.0004]
[1728978062366,0.616742,65869.0,65868.0,0.0044]
[1728978062562,0.616742,65869.0,65868.0,0.0074]
[1728978064154,1.672182,65869.0,65868.0,0.0074]
[1728978065569,1.072182,65869.0,65868.0,0.0074]
[1728978066466,1.672182,65869.0,65865.0,0.0004]
[1728978066763,0.075945,65866.0,65865.0,0.0004]
[1728978066967,0.255945,65866.0,65865.0,0.076347]
[1728978067161,0.255945,65866.0,65865.0,0.0004]
[1728978067862,0.255945,65866.0,65865.0,0.0134]
[1728978070172,0.18,65866.0,65865.0,0.089347]
[1728978070675,1.68,65866.0,65865.0,0.089347]
[1728978072674,1.5,65866.0,65865.0,0.089347]
[1728978072968,1.755945,65866.0,65865.0,0.089347]
[1728978073561,0.3612,65869.0,65865.0,0.269347]
[1728978073766,0.0004,65869.0,65868.0,0.076343]
[1728978074972,0.0004,65869.0,65868.0,0.079343]
[1728978075367,0.0004,65869.0,65868.0,0.082343]
[1728978075566,0.076342,65869.0,65868.0,0.082343]
[1728978077168,0.437142,65869.0,65868.0,0.082343]
[1728978077869,0.617142,65869.0,65868.0,0.082343]
[1728978078665,0.256342,65869.0,65868.0,0.082343]
[1728978087278,0.076342,65869.0,65868.0,0.082343]
[1728978087973,0.186342,65869.0,65868.0,0.082343]
[1728978089679,1.686342,65869.0,65868.0,0.082343]
[1728978093986,1.686342,65869.0,65868.0,0.0064]
[1728978096294,0.075945,65866.0,65860.0,0.0035]
[1728978096481,0.075945,65866.0,65857.0,0.0035]
[1728978096482,0.075952,65860.0,65857.0,0.0035]
[1728978096786,0.075957,65856.0,65855.0,0.0004]
[1728978096987,0.185957,65856.0,65855.0,0.0004]
[1728978098191,0.185957,65856.0,65855.0,0.0144]
[1728978098791,0.185957,65856.0,65855.0,0.0134]
[1728978099793,0.076957,65856.0,65855.0,0.211358]
[1728978101597,0.076957,65856.0,65855.0,0.101358]
[1728978102388,0.076957,65856.0,65855.0,0.0254]
[1728978103793,0.256957,65856.0,65855.0,0.0254]
[1728978107588,0.256957,65856.0,65847.0,0.0035]
[1728978107792,0.256957,65856.0,65829.0,0.06020963]
[1728978107793,0.07597,65845.0,65844.0,0.0035]
[1728978107991,0.25597,65845.0,65841.0,0.02235787]
[1728978108302,0.075973,65842.0,65841.0,0.075974]
[1728978108802,0.255973,65842.0,65841.0,0.075974]
[1728978109000,0.07598,65839.0,65838.0,0.075977]
[1728978109200,0.25598,65839.0,65838.0,0.075977]
[1728978110392,0.25698,65839.0,65838.0,0.075977]
[1728978110701,0.25698,65839.0,65836.0,0.02291658]
[1728978110702,0.25798,65839.0,65836.0,0.02291658]
[1728978110898,0.075979,65837.0,65836.0,0.07598]
[1728978113504,0.075979,65837.0,65836.0,0.07698]
[1728978115895,0.075979,65837.0,65836.0,0.001]
[1728978123510,0.182,65839.0,65838.0,0.075978]
[1728978123717,0.182,65839.0,65838.0,0.076378]
[1728978123908,0.112,65839.0,65838.0,0.076378]
[1728978124812,0.114,65839.0,65838.0,0.076378]
[1728978125005,0.189977,65839.0,65838.0,0.076378]
[1728978128909,0.189977,65839.0,65838.0,0.0004]
[1728978129805,0.299977,65839.0,65838.0,0.0004]
[1728978130010,0.189977,65839.0,65838.0,0.0004]
[1728978133816,0.189977,65839.0,65838.0,0.076378]
[1728978138531,0.189977,65839.0,65830.0,0.0035]
[1728978138532,0.075981,65835.0,65830.0,0.0035]
[1728978138718,0.07599,65827.0,65826.0,0.0035]
[1728978139020,0.07599,65827.0,65815.0,0.076004]